fUST/lending_fUST_20260203
["ID","MTS","AMOUNT","RATE_DAILY","PERIOD"]
[404369823,1770081552944,-500.0,0.00054794,120]
[404369824,1770081552967,-162.45769856,0.00054794,120]
[404369825,1770081552990,-500.0,0.00054794,120]
[404369826,1770081553013,-500.0,0.00054794,2]
[404369827,1770081553037,-527.44899864,0.00054794,120]
[404369828,1770081553060,-421.604378,0.00054794,120]
[404369829,1770081553084,-500.0,0.00054794,120]
[404369830,1770081553107,-569.28,0.00054794,120]
[404369831,1770081553130,-500.0,0.00054794,120]
[404369832,1770081553153,-350.0,0.00054795,120]
[404369833,1770081553177,-178.83870691,0.00055898,120]
[404369834,1770081553202,-172.07808908,0.00055997,120]
[404369835,1770081553229,-10196.57,0.00055998,120]
[404369836,1770081553253,-500.0,0.00055998,120]
[404369837,1770081553279,-759.9,0.00055998,120]
[404369838,1770081553303,-577.68403427,0.00055998,120]
[404369839,1770081553327,-517.57155927,0.00055998,120]
[404369840,1770081553351,-1576.34,0.00055998,120]
[404369841,1770081553374,-300.0,0.00055998,2]
[404369842,1770081553399,-14155.24,0.00055998,120]
[404369843,1770081553421,-500.0,0.00055998,120]
[404369844,1770081553444,-231.63,0.00055998,90]
[404369845,1770081553468,-500.0,0.00055998,120]
[404369846,1770081553492,-500.0,0.00055998,120]
[404369847,1770081553516,-500.0,0.00055998,120]
[404369848,1770081553541,-154.0,0.000562,120]
[404369849,1770081553565,-656.37,0.00056393,10]
[404369850,1770081553591,-546.97,0.00056393,10]
[404369851,1770081553615,-3263.85788475,0.00056403,2]
[404369852,1770081553653,-6736.14211525,0.00056403,2]
[404369853,1770081553676,-6760.81,0.00056503,2]
[404369854,1770081553699,-2613.0,0.00057383,120]
[404369855,1770081553724,-300.0,0.00057425,120]
[404369856,1770081553749,-154.0,0.000583,120]
[404369857,1770081553773,-473.12333594,0.0005879,5]
[404369858,1770081553800,-32962.92454881,0.000588,120]
[404369859,1770081553826,501.32902716,0.00013699,2]
[404369860,1770081554760,500.0,0.00013699,2]
[404369861,1770081554812,500.68686896,0.00014247,2]
[404369862,1770081556771,300.0,0.00013673,2]
[404369865,1770081559441,303.10001603,0.000189,2]
[404369866,1770081559466,303.10001603,0.00019089,2]
[404369867,1770081559515,303.10001603,0.00019278,2]
[404369868,1770081559572,303.10001603,0.00019467,2]
[404369869,1770081559629,303.10001599,0.00019656,2]
[404369870,1770081576613,-500.0,0.00054794,2]
[404369871,1770081576647,-7762.75836128,0.00055898,28]
[404369872,1770081576676,-1543.4,0.00055998,120]
[404369873,1770081576707,-40193.84163872,0.000588,120]
[404369874,1770081577590,-26843.23381447,0.000588,120]
[404369875,1770081577625,-154.7,0.000588,30]
[404369876,1770081577660,227.0,0.00059,2]
[404369877,1770081589663,500.0,0.00054794,120]
[404369886,1770081612461,-3069.59,0.0002,2]
[404369887,1770081612803,-3860.83,0.0002,2]
[404369904,1770081662080,-263.13059424,0.00039555,2]
[404369905,1770081662106,-150.29843729,0.00039728,2]
[404369906,1770081662130,-2000.0,0.00039773,30]
[404369907,1770081662155,-200.0,0.00039773,30]
[404369908,1770081662180,-230.45352287,0.00041831,2]
[404369909,1770081662204,-414.81634117,0.00051506,2]
[404369910,1770081662229,-150.29843729,0.00052917,2]
[404369911,1770081662252,-1000.0,0.00053,120]
[404369912,1770081662277,-303.3527502,0.00053332,5]
[404369913,1770081662300,-1107.99,0.00054794,120]
[404369914,1770081662323,-526.79225003,0.00055998,120]
[404369915,1770081662346,-3468.97,0.00055998,120]
[404369916,1770081662369,-500.0,0.00055998,120]
[404369917,1770081662392,-600.95746099,0.00055998,120]
[404369918,1770081662417,-500.0,0.00055998,120]
[404369919,1770081662443,-235.70288238,0.00060173,32]
[404369920,1770081662473,-420.0,0.00060272,15]
[404369921,1770081662499,-500.0,0.00060273,120]
[404369922,1770081662524,-500.0,0.00060273,120]
[404369923,1770081662548,-892.43,0.00060273,120]
[404369924,1770081662579,-500.0,0.00060273,120]
[404369925,1770081662609,-569.28,0.00060273,120]
[404369926,1770081662633,-500.0,0.00060273,120]
[404369927,1770081662657,-500.0,0.00060273,2]
[404369928,1770081662682,-500.0,0.00060273,120]
[404369929,1770081662706,-1107.99,0.00060273,120]
[404369930,1770081662731,-154.0,0.000604,120]
[404369931,1770081662757,-5000.0,0.00060863,2]
[404369932,1770081662782,-871.0,0.00061378,120]
[404369933,1770081662806,-236.56166797,0.00061468,5]
[404369934,1770081662832,-1095.97565557,0.00061478,120]
[404369936,1770081668775,-181.077,0.00050434,120]
[404369937,1770081668801,-179.0,0.00053434,120]
[404369938,1770081668826,-500.0,0.00054794,120]
[404369939,1770081668851,-179.0,0.00056434,120]
[404369940,1770081668875,-179.0,0.00059434,120]
[404369941,1770081668901,-566.91126012,0.00060273,120]
[404369942,1770081668927,-9100.59434443,0.00061478,120]
[404369943,1770081668952,-500.0,0.00061478,120]
[404369944,1770081668977,-759.9,0.00061478,120]
[404369945,1770081669007,-1576.34,0.00061478,120]
[404369946,1770081669032,-300.0,0.00061478,2]
[404369947,1770081669060,-10978.17739545,0.00061478,120]
[404369948,1770081669684,-3177.06260455,0.00061478,120]
[404369949,1770081669709,-500.0,0.00061478,120]
[404369950,1770081669734,-201.05104543,0.00061478,120]
[404369951,1770081669758,-500.0,0.00061478,120]
[404369952,1770081669781,-1543.4,0.00061478,120]
[404369953,1770081669804,-3468.97,0.00061478,120]
[404369954,1770081669829,-642.51125496,0.00061478,120]
[404369955,1770081669855,-600.0,0.00062079,120]
[404369956,1770081669878,-179.0,0.00062434,120]
[404369957,1770081669902,-154.0,0.000625,120]
[404369958,1770081669924,-1000.0,0.00063,120]
[404369959,1770081669948,-352.68,0.00063342,120]
[404369960,1770081669972,-154.0,0.000645,120]
[404369961,1770081669995,-1000.0,0.00065,120]
[404369962,1770081670018,-500.0,0.00065753,120]
[404369963,1770081670041,-892.43,0.00065753,120]
[404369964,1770081670066,-500.0,0.00065753,120]
[404369965,1770081670089,-569.28,0.00065753,120]
[404369966,1770081670190,-500.0,0.00065753,120]
[404369967,1770081670216,-500.0,0.00065753,2]
[404369968,1770081670241,-500.0,0.00065753,120]
[404369969,1770081670264,-1107.99,0.00065753,120]
[404369970,1770081670290,-1000.0,0.00066,120]
[404369971,1770081670314,-154.0,0.000666,120]
[404369972,1770081670338,-5303.62509506,0.00066957,120]
[404369973,1770081670368,-4892.94490494,0.00066957,120]
[404369974,1770081670391,-500.0,0.00066957,120]
[404369975,1770081670414,-759.9,0.00066957,120]
[404369976,1770081670438,-1576.34,0.00066957,120]
[404369977,1770081670462,-300.0,0.00066957,2]
[404369978,1770081670488,-14155.24,0.00066957,120]
[404369979,1770081670512,-500.0,0.00066957,120]
[404369980,1770081670537,-500.0,0.00066957,120]
[404369981,1770081670561,-1543.4,0.00066957,120]
[404369982,1770081670584,-272.17509506,0.00066957,120]
[404370182,1770082108047,1268.43045565,0.0002,120]
[404370184,1770082115421,1000.0,0.0003978,30]
[404370185,1770082115675,1000.0,0.0003978,30]
[404370186,1770082117670,1767.46418361,6.546e-05,2]
[404370221,1770082202476,333.60490783,0.00039781,30]
[404370224,1770082206428,310.02889981,0.00039781,30]
[404370233,1770082219816,672.77177,0.00039781,120]
[404370248,1770082231729,-1413.21126943,0.00024,60]
[404370277,1770082237770,-798.38579127,0.00024,60]
[404370279,1770082237783,-8975.4342399,0.00026,30]
[404370509,1770082239994,-681.36373403,0.00026,30]
[404370529,1770082240220,-2000.02912874,0.00026,30]
[404371068,1770082245881,-4009.64568416,0.00026,30]
[404371070,1770082245890,-300.0,0.00026519,30]
[404371072,1770082245899,-300.0,0.00026519,30]
[404371074,1770082245908,-300.0,0.00026519,30]
[404371076,1770082245917,-300.0,0.00026519,30]
[404371078,1770082245926,-740.75809701,0.00028,3]
[404371079,1770082245934,-740.75809701,0.00028,7]
[404371081,1770082245943,-740.75809701,0.00028,3]
[404371083,1770082245953,-740.75809701,0.00028,7]
[404371085,1770082245963,-740.75809701,0.00028,3]
[404371087,1770082245972,-152.07840169,0.00033944,2]
[404371089,1770082245981,-6792.41356612,0.00035159,2]
[404371091,1770082245991,-500.0,0.00035259,7]
[404371093,1770082246000,-500.0,0.00035259,7]
[404371095,1770082246009,-258.44571588,0.00035259,7]
[404371097,1770082246018,-500.0,0.00035259,7]
[404371099,1770082246027,-500.0,0.00035259,7]
[404371101,1770082246036,-500.0,0.00035259,7]
[404371103,1770082246045,-500.0,0.00035259,7]
[404371105,1770082246054,-395.22931207,0.00035259,7]
[404371107,1770082246062,-500.0,0.00035259,7]
[404371109,1770082246071,-500.0,0.00035259,7]
[404371111,1770082246082,-550.0,0.00035259,7]
[404371113,1770082246091,-500.0,0.00035259,7]
[404371116,1770082246101,-500.0,0.00035259,7]
[404371118,1770082246110,-500.0,0.00035259,7]
[404371120,1770082246120,-500.0,0.00035259,7]
[404371122,1770082246129,-386.71516009,0.00035259,7]
[404371130,1770082246205,-113.28483991,0.00035259,7]
[404371132,1770082246215,-500.0,0.00035259,7]
[404371135,1770082246225,-500.0,0.00035259,7]
[404371137,1770082246236,-500.0,0.00035259,7]
[404371139,1770082246246,-483.33174038,0.00035259,7]
[404371141,1770082246259,-16.66825962,0.00035259,7]
[404371143,1770082246268,-500.0,0.00035259,7]
[404371145,1770082246277,-740.75809701,0.00035259,7]
[404371147,1770082246286,-150.36658286,0.00039728,2]
[404371148,1770082246295,-1024.91364495,0.0003978,30]
[404371151,1770082246305,-3975.08635505,0.0003978,30]
[404371153,1770082246315,-2000.0,0.00039781,30]
[404371155,1770082246324,-317.39791335,0.00042,60]
[404371157,1770082246333,-608.31360677,0.00043671,2]
[404371159,1770082246342,-183.96515,0.00046167,2]
[404371161,1770082246351,-183.96515,0.00046167,120]
[404371163,1770082246360,-300.0,0.00047719,15]
[404371165,1770082246369,-634.24754482,0.00047859,2]
[404371166,1770082246379,-2500.0,0.0005,120]
[404371169,1770082246388,-162.0,0.0005,120]
[404371170,1770082246399,-580.66666668,0.00050701,120]
[404371172,1770082246408,-200.3856587,0.00050871,5]
[404371175,1770082246421,-358.16331943,0.00050871,5]
[404371177,1770082246431,-177.7320575,0.00051184,2]
[404371179,1770082246440,-150.36658286,0.00051566,2]
[404371181,1770082246449,-162.0,0.00053,120]
[404371183,1770082246458,-1368.70561524,0.00053399,2]
[404371185,1770082246467,-800.74109217,0.00053752,5]
[404371187,1770082246477,-145.89488577,0.00053752,5]
[404371899,1770082271014,4401.0,0.00039781,120]
[404371905,1770082327106,2965.0,0.00039781,120]
[404371906,1770082352096,-1396.672,0.0003222,30]
[404371907,1770082352121,-354.657275,0.000332,117]
[404371908,1770082352148,-210.21801929,0.00037247,2]
[404371909,1770082352177,-157.31,0.00038356,120]
[404371910,1770082352200,-400.5744785,0.00039296,2]
[404371911,1770082352225,-400.0,0.0003978,5]
[404371912,1770082352250,-5000.0,0.00039781,30]
[404371913,1770082352273,-331.0,0.00042442,5]
[404371914,1770082352296,-400.5744785,0.00043823,2]
[404371915,1770082352320,-840.87207715,0.000472,2]
[404371916,1770082352343,-400.5744785,0.00048351,2]
[404371917,1770082352367,-180.03026306,0.000505,60]
[404371918,1770082352390,-276.99315482,0.00051177,5]
[404371919,1770082352414,-400.5744785,0.00052878,2]
[404371920,1770082352440,-1286.75839195,0.00053752,5]
[404371921,1770082352463,-1141.64558068,0.00054141,2]
[404371922,1770082352493,-857.71,0.00054794,120]
[404371923,1770082352517,-500.0,0.00054794,120]
[404371924,1770082352541,-549.56,0.00054794,120]
[404371925,1770082352567,-500.0,0.00054794,120]
[404371926,1770082352590,-500.0,0.00054794,2]
[404371927,1770082352614,-500.0,0.00054794,120]
[404371928,1770082352637,-971.61,0.00054794,120]
[404371929,1770082352662,-152.83832006,0.00054794,120]
[404371930,1770082352690,-160.15836639,0.00054794,120]
[404371931,1770082352714,-500.0,0.00054794,120]
[404371932,1770082352738,-500.0,0.00054794,120]
[404371933,1770082352762,-500.0,0.00054794,120]
[404371934,1770082352785,-500.0,0.00054794,120]
[404371935,1770082352808,-500.0,0.00054794,120]
[404371936,1770082352835,-500.0,0.00054794,120]
[404371937,1770082352858,-500.0,0.00054794,120]
[404371938,1770082352881,-150.0,0.00054795,14]
[404371939,1770082352906,-600.0,0.000549,120]
[404371940,1770082352934,-1041.66666667,0.00055134,2]
[404371941,1770082352956,-740.75809701,0.00055134,2]
[404371942,1770082352979,-160.0,0.00055134,2]
[404371943,1770082353003,-937.24387392,0.00055158,5]
[404371944,1770082356540,-500.0,0.00054794,120]
[404371945,1770082356567,-500.0,0.00054794,120]
[404371946,1770082356595,-500.0,0.00054794,120]
[404371947,1770082356622,-500.0,0.00054794,120]
[404371948,1770082356648,-500.0,0.00054794,120]
[404371949,1770082356673,-500.0,0.00054794,120]
[404371950,1770082356698,-500.0,0.00054794,120]
[404371951,1770082356723,-500.0,0.00054794,120]
[404371952,1770082356745,-500.0,0.00054794,120]
[404371953,1770082356769,-500.0,0.00054794,120]
[404371954,1770082356791,-500.0,0.00054794,120]
[404371955,1770082356815,-500.0,0.00054794,120]
[404371956,1770082356840,-500.0,0.00054794,120]
[404371957,1770082356863,-500.0,0.00054794,120]
[404371958,1770082356886,-500.0,0.00054794,120]
[404371959,1770082356911,-591.09760323,0.00054794,120]
[404371960,1770082356936,-170.72874538,0.00055158,5]
[404371961,1770082356960,-250.0,0.00055342,14]
[404371962,1770082356986,-13029.26,0.0005589,120]
[404371963,1770082357010,-152.42277253,0.0005589,120]
[404371964,1770082357035,-298.90005501,0.0005589,120]
[404371965,1770082357131,-588.34357465,0.0005589,120]
[404371966,1770082357155,-500.0,0.0005589,120]
[404371967,1770082357179,-163.80320263,0.0005589,120]
[404371968,1770082357201,-500.0,0.0005589,120]
[404371969,1770082357224,-152.43238299,0.0005589,120]
[404371970,1770082357247,-192.49793463,0.0005589,120]
[404371971,1770082357271,-300.0,0.0005589,2]
[404371972,1770082357293,-350.0,0.0005589,14]
[404371973,1770082357320,-260.51372895,0.00055997,120]
[404371974,1770082357352,-1190.43627105,0.00055997,120]
[404371975,1770082357378,-272.47581372,0.00055997,120]
[404371976,1770082357402,-156.12543298,0.00055997,120]
[404371977,1770082357426,-384.91644813,0.00055997,7]
[404371978,1770082357450,-272.35754424,0.00055997,120]
[404371979,1770082357474,-3176.33,0.00055997,120]
[404371980,1770082357499,-524.29812403,0.00055997,120]
[404371981,1770082357523,-1000.0,0.00055998,2]
[404371982,1770082357547,-511.92,0.00055998,120]
[404371983,1770082357571,-500.0,0.00055998,120]
[404371984,1770082357594,-500.0,0.00055998,120]
[404371985,1770082357616,-638.90832492,0.00055998,120]
[404371986,1770082357640,-162.0,0.00056,120]
[404371987,1770082357663,-450.0,0.00056438,14]
[404371988,1770082357685,-1170.42096269,0.000569,120]
[404371989,1770082357707,-221.77039505,0.000569,28]
[404371990,1770082357730,-552.07659292,0.00056986,14]
[404371991,1770082357754,-13315.96409027,0.00057,120]
[404371992,1770082358239,-25000.0,0.00057,120]
[404371993,1770082383920,502.54993704,0.00013273,2]
[404372058,1770082700788,245.73181858,0.0003979,120]
[404372059,1770082736105,220902.84587483,0.0003979,120]
[404372060,1770082910095,159.78,0.00030137,120]
[404372061,1770082928598,167.25602892,0.00039785,120]
[404372062,1770083017342,-1000.0,0.00036044,30]
[404372063,1770083017368,-1217.0,0.00036252,3]
[404372064,1770083017392,-301.0,0.00036252,3]
[404372065,1770083017415,-7482.0,0.00036253,2]
[404372066,1770083018515,-2518.0,0.00036253,2]
[404372067,1770083018542,-343.69360478,0.00038194,120]
[404372068,1770083018567,-7138.30639522,0.00038295,2]
[404372069,1770083019948,-4729.13226988,0.00038295,2]
[404372070,1770083019976,-166.66666668,0.00039196,2]
[404372071,1770083020002,-5104.20106344,0.00039296,2]
[404372072,1770083021183,-4333.23535336,0.00039296,2]
[404372073,1770083021207,-211.41377112,0.00039728,2]
[404372074,1770083021232,-5000.0,0.00039785,30]
[404372075,1770083021256,-455.35087552,0.0004451,2]
[404372076,1770083022446,-8982.08554128,0.0004451,2]
[404372077,1770083026846,1017.91445872,0.00039784,30]
[404372094,1770083431906,-500.0,0.00037,30]
[404372149,1770083437983,-864.0,0.00037,30]
[404372151,1770083437993,-216.61125289,0.00039728,2]
[404372153,1770083438003,-302.0,0.00039783,5]
[404372155,1770083438012,-1319.92023749,0.00039784,30]
[404372157,1770083438021,-5000.0,0.00039784,30]
[404372159,1770083438031,-179.65,0.00049425,16]
[404372161,1770083438040,-274.95488384,0.00049625,120]
[404372162,1770083438049,-5473.83405393,0.00049725,2]
[404372165,1770083438060,-3963.60236287,0.00049725,2]
[404372167,1770083438070,-156.0,0.0005,120]
[404372169,1770083438080,-204.0,0.00050685,120]
[404372170,1770083438093,-600.0,0.00050718,120]
[404372172,1770083438115,-216.61125289,0.00051136,2]
[404372175,1770083438136,-206.87,0.00052555,120]
[404372177,1770083438146,-156.0,0.000527,120]
[404372179,1770083438156,-191.728551,0.00053998,2]
[404372181,1770083438167,-151.7681602,0.0005452,120]
[404372183,1770083438176,-150.32020392,0.0005452,120]
[404372185,1770083438185,-202.20204249,0.0005452,120]
[404372187,1770083438196,-150.93170056,0.0005452,120]
[404372189,1770083438206,-150.0,0.0005452,120]
[404372191,1770083438216,-211.16179708,0.0005452,120]
[404372193,1770083438226,-153.05078241,0.0005452,120]
[404372195,1770083438236,-150.0,0.0005452,120]
[404372197,1770083438245,-150.0,0.0005452,120]
[404372199,1770083438258,-150.37909152,0.0005452,120]
[404372201,1770083438267,-150.0,0.0005452,120]
[404372202,1770083438277,-150.74427471,0.0005452,120]
[404372204,1770083438287,-205.77620758,0.0005452,120]
[404372205,1770083438297,-284.58408197,0.0005452,120]
[404372206,1770083438307,-157.93087687,0.0005452,120]
[404372207,1770083438316,-500.0,0.0005452,120]
[404372208,1770083438329,-181.61180707,0.0005452,120]
[404372209,1770083438338,-150.09860128,0.0005452,120]
[404372210,1770083438347,-153.28511521,0.0005452,120]
[404372211,1770083438357,-279.22605763,0.0005452,120]
[404372212,1770083438368,-153.04795647,0.0005452,120]
[404372213,1770083438377,-150.0,0.00054657,120]
[404372214,1770083438387,-150.0,0.00054657,120]
[404372215,1770083438399,-150.0,0.00054657,120]
[404372216,1770083438409,-524.37128564,0.00054657,120]
[404372217,1770083438419,-190.95320055,0.00054694,120]
[404372218,1770083438430,-237.03686286,0.00054694,2]
[404372219,1770083438440,-150.0,0.00054694,120]
[404372220,1770083438451,-5947.85217512,0.00054694,28]
[404372221,1770083438460,-500.0,0.00054792,120]
[404372222,1770083438470,-195.4317263,0.00054793,120]
[404372223,1770083438480,-500.0,0.00054793,120]
[404372224,1770083438490,-293.41064602,0.00054793,120]
[404372225,1770083438500,-201.79039357,0.00054794,120]
[404372226,1770083438532,-201.19269764,0.00054794,120]
[404372227,1770083438543,-201.33127126,0.00054794,120]
[404372228,1770083438554,-10671.72,0.00054794,120]
[404372229,1770083438567,-500.0,0.00054794,120]
[404372231,1770083438580,-795.15,0.00054794,120]
[404372232,1770083438592,-500.0,0.00054794,120]
[404372233,1770083438603,-2595.17179333,0.00054794,60]
[404372234,1770083438615,-897.65,0.00054794,120]
[404372235,1770083438625,-168.71804287,0.00054794,120]
[404372236,1770083438636,-175.93451903,0.00054794,120]
[404372237,1770083438648,-151.40188648,0.00054794,120]
[404372238,1770083438659,-500.0,0.00054794,120]
[404372239,1770083438670,-576.76,0.00054794,120]
[404372240,1770083438681,-167.83893955,0.00054794,120]
[404372241,1770083438693,-500.0,0.00054794,120]
[404372242,1770083438704,-508.77895938,0.00054794,120]
[404372243,1770083438715,-179.57488555,0.00054794,120]
[404372244,1770083438728,-165.26736466,0.00054794,120]
[404372245,1770083438740,-150.71134212,0.00054794,60]
[404372246,1770083438751,-423.25851045,0.00054794,120]
[404372247,1770083438762,-358.09390664,0.00054794,120]
[404372248,1770083438773,-500.33370188,0.00054794,120]
[404372249,1770083438783,-500.0,0.00054794,120]
[404372250,1770083438793,-500.11237725,0.00054794,120]
[404372251,1770083438805,-1856.24,0.00054794,120]
[404372252,1770083438816,-300.0,0.00054794,2]
[404372253,1770083438827,-260.27209819,0.00054794,120]
[404372254,1770083438837,-520.4,0.00054794,120]
[404372255,1770083438848,-3206.15,0.00054794,120]
[404372256,1770083438857,-146.81591942,0.00054794,120]
[404372257,1770083438871,-436.75542861,0.00054794,120]
[404372258,1770083438880,-167.22668857,0.00054794,120]
[404372259,1770083438892,-500.0,0.00054794,120]
[404372260,1770083438904,-544.45,0.00054794,120]
[404372261,1770083438914,-544.45,0.00054794,120]
[404372262,1770083438924,-544.45,0.00054794,120]
[404372263,1770083438934,-544.45,0.00054794,120]
[404372264,1770083438945,-544.45,0.00054794,120]
[404372265,1770083438956,-544.45,0.00054794,120]
[404372266,1770083438967,-544.45,0.00054794,120]
[404372267,1770083438979,-544.45,0.00054794,120]
[404372268,1770083438989,-544.45,0.00054794,120]
[404372269,1770083439000,-191.79584002,0.00054794,120]
[404372280,1770083440190,-262.0624995,0.00054794,120]
[404372282,1770083440244,-90.59166048,0.00054794,120]
[404372283,1770083440253,-544.45,0.00054794,120]
[404372284,1770083440262,-544.45,0.00054794,120]
[404372285,1770083440272,-544.45,0.00054794,120]
[404372286,1770083440281,-107.00378647,0.00054794,120]
[404372287,1770083440305,-437.44621353,0.00054794,120]
[404372288,1770083440315,-544.45,0.00054794,120]
[404372289,1770083440327,-544.45,0.00054794,120]
[404372290,1770083440337,-544.45,0.00054794,120]
[404372291,1770083440345,-500.0,0.00054794,2]
[404372292,1770083440355,-1528.97,0.00054794,120]
[404372293,1770083440364,-544.45,0.00054794,120]
[404372294,1770083440373,-544.45,0.00054794,120]
[404372295,1770083440381,-544.45,0.00054794,120]
[404372296,1770083440392,-544.45,0.00054794,120]
[404372297,1770083440401,-544.45,0.00054794,120]
[404372298,1770083440410,-544.45,0.00054794,120]
[404372299,1770083440420,-544.47,0.00054794,120]
[404372300,1770083440429,-1478.79,0.00054794,120]
[404372301,1770083440437,-251.87851054,0.00054794,120]
[404372302,1770083440446,-253.54749038,0.00054794,90]
[404372303,1770083440456,-166.26639715,0.00054794,120]
[404372304,1770083440465,-287.48002686,0.00054794,120]
[404372305,1770083440475,-388.5289398,0.00054794,120]
[404372306,1770083440484,-13792.67,0.00054794,120]
[404372307,1770083440493,-521.86078098,0.00054794,120]
[404372308,1770083440502,-279.01026569,0.00054794,120]
[404372309,1770083440512,-1025.46,0.00054794,120]
[404372310,1770083440524,-500.0,0.00054794,120]
[404372311,1770083440533,-183.94315325,0.00054794,120]
[404372312,1770083440542,-155.03692112,0.00054794,120]
[404372313,1770083440551,-242.33351871,0.00054794,120]
[404372314,1770083440561,-518.76546072,0.00054794,120]
[404372315,1770083440570,-322.61851343,0.00054794,120]
[404372316,1770083440579,-500.0,0.00054794,120]
[404372317,1770083440589,-229.49024955,0.00054794,120]
[404372318,1770083440599,-500.0,0.00054794,120]
[404372319,1770083440609,-307.93424221,0.00054794,120]
[404372320,1770083440620,-508.75961237,0.00054794,120]
[404372321,1770083440629,-334.98920465,0.00054794,120]
[404372322,1770083440639,-489.92,0.00054929,10]
[404372323,1770083440650,-408.27,0.00054929,10]
[404372324,1770083440659,-6548.65645294,0.00054939,2]
[404372325,1770083440671,-528.89051107,0.00054939,2]
[404372340,1770083445309,-1378.62418136,0.00039784,30]
[404372341,1770083445321,-325.55877297,0.00039784,30]
[404372360,1770083446321,-539.347,0.00039784,30]
[404372361,1770083446373,-2756.47004567,0.00039784,30]
[404372362,1770083446384,-497.33115498,0.00054939,2]
[404372363,1770083446396,-1862.55829781,0.00054939,2]
[404372364,1770083446405,-740.75809701,0.00055107,2]
[404372365,1770083446414,-1041.66666667,0.00055107,2]
[404372366,1770083446425,-156.0,0.000554,120]
[404372367,1770083446434,-159.73733082,0.00055616,120]
[404372368,1770083446443,-205.92696398,0.00055616,120]
[404372369,1770083446452,-222.62475592,0.0005578,27]
[404372370,1770083446460,-720.0,0.0005579,120]
[404372371,1770083446469,-292.24398656,0.00055869,4]
[404372372,1770083446479,-306.93652066,0.00055879,120]
[404372373,1770083446488,-514.72989037,0.0005589,120]
[404372374,1770083446497,-500.0,0.0005589,120]
[404372375,1770083446506,-165.3701674,0.0005589,120]
[404372376,1770083446515,-500.0,0.0005589,120]
[404372377,1770083446524,-156.84423016,0.0005589,120]
[404372378,1770083446533,-1000.0,0.0005589,2]
[404372379,1770083446542,-512.95,0.0005589,120]
[404372380,1770083446551,-172.53061028,0.0005589,120]
[404372381,1770083446561,-500.0,0.0005589,120]
[404372382,1770083446571,-500.0,0.0005589,120]
[404372383,1770083446580,-524.92436273,0.0005589,120]
[404372384,1770083446589,-499.34341423,0.0005589,120]
[404372385,1770083446598,-528.34755084,0.0005589,120]
[404372386,1770083446607,-500.0,0.0005589,120]
[404372387,1770083446617,-1395.53398717,0.0005589,30]
[404372388,1770083446629,-1163.66569481,0.0005589,30]
[404372394,1770083525118,500.45217044,0.00013699,2]
[404372395,1770083525189,502.26914519,0.00013699,2]
[404372396,1770083525574,501.13755801,0.00013699,2]
[404372397,1770083527221,502.06410016,0.00013273,2]
[404372398,1770083528440,500.51079263,0.00013699,2]
[404372399,1770083528685,500.79593262,0.00013699,2]
[404372400,1770083529216,500.81069172,0.00013699,2]
[404372401,1770083531043,500.0,0.00013273,2]
[404372402,1770083531095,1010.61475165,0.00013821,2]
[404372403,1770083531134,503.26389974,0.00013273,2]
[404372404,1770083531825,500.0,0.00013273,2]
[404372405,1770083531853,1000.94969045,0.00013821,2]
[404372406,1770083532316,501.16392305,0.00013273,2]
[404372407,1770083532538,500.22833477,0.00013699,2]
[404372408,1770083553021,10000.0,0.00015342,2]
[404372409,1770083584347,0.01,0.00013699,2]
[404372410,1770083584370,499.99,0.00013699,2]
[404372411,1770083584396,1027.92486784,0.00014247,2]